[Event "*** SCC Grand Prix: Titled Tuesday Blitz"]
[Site "Chess.com"]
[Date "2020.09.08"]
[Round "2"]
[White "Gorin_Leonid"]
[Black "Ural_bogatyr"]
[Result "0-1"]
[WhiteElo "2628"]
[BlackElo "2336"]
[TimeControl "180+1"]
[EndTime "10:18:43 PDT"]
[Termination "Ural_bogatyr won by resignation"]

1. e4 {[%clk 0:03:00.9]} 1... e5 {[%clk 0:02:59.7]} 2. Nf3 {[%clk 0:03:00.7]}
2... Nc6 {[%clk 0:02:59.9]} 3. Bb5 {[%clk 0:03:00.6]} 3... Bc5 {[%clk
0:02:59.3]} 4. O-O {[%clk 0:02:59.7]} 4... Nf6 {[%clk 0:02:59.4]} 5. Nxe5 {[%clk
0:02:59.4]} 5... Nxe4 {[%clk 0:02:58.6]} 6. Qe2 {[%clk 0:02:58.6]} 6... Nxe5
{[%clk 0:02:55]} 7. Qxe4 {[%clk 0:02:58.3]} 7... Qe7 {[%clk 0:02:55.3]} 8. d4
{[%clk 0:02:57.9]} 8... Nc6 {[%clk 0:02:55.5]} 9. Qxe7+ {[%clk 0:02:57.8]} 9...
Bxe7 {[%clk 0:02:56.4]} 10. c3 {[%clk 0:02:57.8]} 10... a6 {[%clk 0:02:48.5]}
11. Ba4 {[%clk 0:02:57.1]} 11... d5 {[%clk 0:02:42.4]} 12. Bf4 {[%clk
0:02:56.2]} 12... Bd6 {[%clk 0:02:38.7]} 13. Bxd6 {[%clk 0:02:55.3]} 13... cxd6
{[%clk 0:02:36]} 14. Re1+ {[%clk 0:02:55.4]} 14... Be6 {[%clk 0:02:35.5]} 15.
Nd2 {[%clk 0:02:55.6]} 15... b5 {[%clk 0:02:31.6]} 16. Bb3 {[%clk 0:02:54.7]}
16... Kd7 {[%clk 0:02:17.1]} 17. Nf1 {[%clk 0:02:52.8]} 17... Na5 {[%clk
0:02:14.2]} 18. Ne3 {[%clk 0:02:52.1]} 18... Nxb3 {[%clk 0:02:11.2]} 19. axb3
{[%clk 0:02:51.5]} 19... a5 {[%clk 0:02:10.6]} 20. Ra2 {[%clk 0:02:46.1]} 20...
Ra7 {[%clk 0:02:00.6]} 21. Rea1 {[%clk 0:02:45.3]} 21... Rha8 {[%clk 0:01:59.4]}
22. b4 {[%clk 0:02:42.5]} 22... a4 {[%clk 0:01:57.2]} 23. b3 {[%clk 0:02:35.9]}
23... Kc6 {[%clk 0:01:30]} 24. Nc2 {[%clk 0:02:16.9]} 24... Bf5 {[%clk 0:01:01]}
25. bxa4 {[%clk 0:02:16.2]} 25... Bxc2 {[%clk 0:00:48.9]} 26. Rxc2 {[%clk
0:02:07]} 26... bxa4 {[%clk 0:00:38.2]} 27. Ra3 {[%clk 0:02:04.6]} 27... Kb5
{[%clk 0:00:37.8]} 28. Kf1 {[%clk 0:02:04.5]} 28... Re7 {[%clk 0:00:29.1]} 29.
Re2 {[%clk 0:01:56.2]} 29... Rae8 {[%clk 0:00:28.8]} 30. Rxe7 {[%clk 0:01:52.6]}
30... Rxe7 {[%clk 0:00:29.7]} 31. f3 {[%clk 0:01:52.9]} 31... f5 {[%clk
0:00:27]} 32. Kf2 {[%clk 0:01:49.1]} 32... f4 {[%clk 0:00:27.2]} 33. Ra1 {[%clk
0:01:47.7]} 33... Re3 {[%clk 0:00:25.3]} 34. Ra3 {[%clk 0:01:47.1]} 34... g5
{[%clk 0:00:24.1]} 35. g3 {[%clk 0:01:46.6]} 35... h6 {[%clk 0:00:21.8]} 36. h4
{[%clk 0:01:45.1]} 36... Re7 {[%clk 0:00:19.4]} 37. hxg5 {[%clk 0:01:38.6]}
37... hxg5 {[%clk 0:00:19.2]} 38. gxf4 {[%clk 0:01:38.5]} 38... gxf4 {[%clk
0:00:20.1]} 39. Ra1 {[%clk 0:01:38.7]} 39... Rh7 {[%clk 0:00:19.4]} 40. Kg2
{[%clk 0:01:38.8]} 40... Rg7+ {[%clk 0:00:19.3]} 41. Kf2 {[%clk 0:01:38.7]}
41... Re7 {[%clk 0:00:20.1]} 42. Ra2 {[%clk 0:01:35.6]} 42... Re3 {[%clk
0:00:19.7]} 43. Ra3 {[%clk 0:01:35.2]} 43... Re8 {[%clk 0:00:18.2]} 44. Ra1
{[%clk 0:01:34.4]} 44... Rc8 {[%clk 0:00:17.9]} 45. Ra3 {[%clk 0:01:33.7]} 45...
Rc7 {[%clk 0:00:18.4]} 46. Kg2 {[%clk 0:01:29.8]} 46... Rh7 {[%clk 0:00:16.7]}
47. Ra1 {[%clk 0:01:27.7]} 47... Re7 {[%clk 0:00:16.1]} 48. Kf2 {[%clk
0:01:27.4]} 48... Re3 {[%clk 0:00:15.4]} 49. Ra3 {[%clk 0:01:26.5]} 49... Kc4
{[%clk 0:00:11.9]} 50. Rxa4 {[%clk 0:01:24.6]} 50... Rxc3 {[%clk 0:00:11.2]} 51.
Ra6 {[%clk 0:01:19.1]} 51... Rc2+ {[%clk 0:00:10.5]} 52. Kg1 {[%clk 0:01:18.4]}
52... Kxd4 {[%clk 0:00:10.5]} 53. Rxd6 {[%clk 0:01:18.2]} 53... Rb2 {[%clk
0:00:09.4]} 54. Rf6 {[%clk 0:01:12]} 54... Ke3 {[%clk 0:00:08.9]} 55. Rd6 {[%clk
0:01:09.5]} 55... d4 {[%clk 0:00:08.3]} 56. Re6+ {[%clk 0:01:09.6]} 56... Kxf3
{[%clk 0:00:08.3]} 57. Rd6 {[%clk 0:01:09.4]} 57... Rxb4 {[%clk 0:00:08.1]} 58.
Kh2 {[%clk 0:01:08.2]} 58... Kf2 {[%clk 0:00:06.8]} 59. Rf6 {[%clk 0:01:07.1]}
59... f3 {[%clk 0:00:07]} 60. Kh3 {[%clk 0:01:07.1]} 60... d3 {[%clk 0:00:06.7]}
61. Rd6 {[%clk 0:01:06.1]} 61... Rb3 {[%clk 0:00:06.5]} 62. Kg4 {[%clk
0:01:05.5]} 62... Ke2 {[%clk 0:00:05]} 63. Re6+ {[%clk 0:01:04.9]} 63... Kf2
{[%clk 0:00:05.3]} 64. Rd6 {[%clk 0:01:04.7]} 64... Rb4+ {[%clk 0:00:05.4]} 65.
Kh3 {[%clk 0:01:04.5]} 65... Ke3 {[%clk 0:00:04.7]} 66. Kg3 {[%clk 0:01:03.1]}
66... Rd4 {[%clk 0:00:03.4]} 67. Re6+ {[%clk 0:01:02.6]} 67... Re4 {[%clk
0:00:03.5]} 68. Rd6 {[%clk 0:01:01.2]} 68... Ke2 {[%clk 0:00:03.6]} 0-1

[Event "*** SCC Grand Prix: Titled Tuesday Blitz"]
[Site "Chess.com"]
[Date "2020.09.08"]
[Round "2"]
[White "HouseOfDurin"]
[Black "KubaGepard"]
[Result "0-1"]
[WhiteElo "2110"]
[BlackElo "2401"]
[TimeControl "180+1"]
[EndTime "10:18:44 PDT"]
[Termination "KubaGepard won on time"]

1. d4 {[%clk 0:03:00.9]} 1... d5 {[%clk 0:03:00.1]} 2. Bg5 {[%clk 0:03:01]} 2...
Nd7 {[%clk 0:02:56]} 3. e3 {[%clk 0:03:00.6]} 3... Ngf6 {[%clk 0:02:55.1]} 4. c4
{[%clk 0:03:01.2]} 4... e6 {[%clk 0:02:54.1]} 5. Nc3 {[%clk 0:03:00.1]} 5... h6
{[%clk 0:02:52.5]} 6. Bh4 {[%clk 0:02:59.7]} 6... Be7 {[%clk 0:02:50.9]} 7. f4
{[%clk 0:02:59.2]} 7... c6 {[%clk 0:02:42.6]} 8. Nf3 {[%clk 0:02:58]} 8... Qb6
{[%clk 0:02:32]} 9. Qb3 {[%clk 0:02:49.7]} 9... dxc4 {[%clk 0:02:27.4]} 10. Bxc4
{[%clk 0:02:43.9]} 10... Qxb3 {[%clk 0:02:21.5]} 11. Bxb3 {[%clk 0:02:43.2]}
11... O-O {[%clk 0:02:17]} 12. O-O-O {[%clk 0:02:42.3]} 12... b6 {[%clk
0:02:14]} 13. Ne5 {[%clk 0:02:40.9]} 13... Nxe5 {[%clk 0:02:10.3]} 14. fxe5
{[%clk 0:02:32.4]} 14... Nd5 {[%clk 0:02:09.3]} 15. Bxe7 {[%clk 0:02:23.7]}
15... Nxe7 {[%clk 0:02:08.8]} 16. Ne4 {[%clk 0:02:23.5]} 16... a5 {[%clk
0:02:02.2]} 17. a4 {[%clk 0:02:17.6]} 17... Ba6 {[%clk 0:01:55.6]} 18. Rd2
{[%clk 0:02:07.6]} 18... Nd5 {[%clk 0:01:51.9]} 19. Bxd5 {[%clk 0:02:06.8]}
19... cxd5 {[%clk 0:01:51.7]} 20. Nd6 {[%clk 0:02:07.2]} 20... Ra7 {[%clk
0:01:42.2]} 21. Rc2 {[%clk 0:01:56.8]} 21... Rb8 {[%clk 0:01:36.6]} 22. Kd2
{[%clk 0:01:34.4]} 22... b5 {[%clk 0:01:32.9]} 23. axb5 {[%clk 0:01:34.4]} 23...
Bxb5 {[%clk 0:01:33]} 24. Rhc1 {[%clk 0:01:35]} 24... Bc4 {[%clk 0:01:28.1]} 25.
Nxc4 {[%clk 0:01:08.8]} 25... dxc4 {[%clk 0:01:26.3]} 26. Ra1 {[%clk 0:01:09.3]}
26... Rb4 {[%clk 0:01:24.2]} 27. Ra3 {[%clk 0:01:06.4]} 27... Kf8 {[%clk
0:01:19]} 28. Rac3 {[%clk 0:00:58.4]} 28... Rc7 {[%clk 0:01:18.1]} 29. b3 {[%clk
0:00:53.7]} 29... cxb3 {[%clk 0:01:10.7]} 30. Rxc7 {[%clk 0:00:41.6]} 30... bxc2
{[%clk 0:01:10]} 31. Kxc2 {[%clk 0:00:32]} 31... a4 {[%clk 0:01:08.5]} 32. Ra7
{[%clk 0:00:25.9]} 32... Rb3 {[%clk 0:01:06.4]} 33. Rxa4 {[%clk 0:00:22.6]}
33... Rxe3 {[%clk 0:01:06]} 34. Ra2 {[%clk 0:00:19.9]} 34... g5 {[%clk
0:01:00.2]} 35. Kd2 {[%clk 0:00:18.9]} 35... Rb3 {[%clk 0:00:59.7]} 36. Rc2
{[%clk 0:00:18.3]} 36... Kg7 {[%clk 0:00:58.5]} 37. Ke2 {[%clk 0:00:18.7]} 37...
Kg6 {[%clk 0:00:58.4]} 38. Rc7 {[%clk 0:00:15.7]} 38... h5 {[%clk 0:00:56.9]}
39. Rd7 {[%clk 0:00:14.9]} 39... h4 {[%clk 0:00:55.9]} 40. h3 {[%clk 0:00:15.1]}
40... Rg3 {[%clk 0:00:54.4]} 41. Kf2 {[%clk 0:00:15]} 41... Rd3 {[%clk
0:00:53.4]} 42. Ke2 {[%clk 0:00:14.3]} 42... Ra3 {[%clk 0:00:53.7]} 43. Kf2
{[%clk 0:00:11.7]} 43... Ra1 {[%clk 0:00:51.5]} 44. Ke2 {[%clk 0:00:11.1]} 44...
f6 {[%clk 0:00:48]} 45. Rd6 {[%clk 0:00:08.6]} 45... fxe5 {[%clk 0:00:39.8]} 46.
Rxe6+ {[%clk 0:00:08.2]} 46... Kf5 {[%clk 0:00:40.3]} 47. Rxe5+ {[%clk 0:00:09]}
47... Kf4 {[%clk 0:00:40.1]} 48. Re8 {[%clk 0:00:07.7]} 48... Ra2+ {[%clk
0:00:38.8]} 49. Kf1 {[%clk 0:00:07.7]} 49... Kg3 {[%clk 0:00:38.5]} 50. Re3+
{[%clk 0:00:06.4]} 50... Kh2 {[%clk 0:00:37]} 51. Re2 {[%clk 0:00:04.9]} 51...
Ra1+ {[%clk 0:00:35]} 52. Kf2 {[%clk 0:00:05]} 52... Rd1 {[%clk 0:00:35]} 53.
Ke3 {[%clk 0:00:04]} 53... Kg3 {[%clk 0:00:33.4]} 54. Rd2 {[%clk 0:00:03.7]}
54... Re1+ {[%clk 0:00:33.2]} 55. Kd3 {[%clk 0:00:03.1]} 55... Ra1 {[%clk
0:00:32.2]} 56. Kc4 {[%clk 0:00:03.3]} 56... Rc1+ {[%clk 0:00:31.9]} 57. Kb5
{[%clk 0:00:03.5]} 57... Rb1+ {[%clk 0:00:31.7]} 58. Kc6 {[%clk 0:00:04]} 58...
Kf4 {[%clk 0:00:32.1]} 59. d5 {[%clk 0:00:03.2]} 59... Ke3 {[%clk 0:00:32.6]}
60. Ra2 {[%clk 0:00:01.9]} 60... Rc1+ {[%clk 0:00:31.8]} 61. Kd7 {[%clk
0:00:01.4]} 61... Ke4 {[%clk 0:00:32]} 0-1

[Event "*** SCC Grand Prix: Titled Tuesday Blitz"]
[Site "Chess.com"]
[Date "2020.09.08"]
[Round "2"]
[White "Manukyan_Artak"]
[Black "MarkoPe"]
[Result "1-0"]
[WhiteElo "2416"]
[BlackElo "2176"]
[TimeControl "180+1"]
[EndTime "10:18:48 PDT"]
[Termination "Manukyan_Artak won by checkmate"]

1. e4 {[%clk 0:03:00.9]} 1... c5 {[%clk 0:02:58.8]} 2. Nf3 {[%clk 0:03:00.1]}
2... d6 {[%clk 0:02:58.3]} 3. Bb5+ {[%clk 0:02:59.2]} 3... Bd7 {[%clk
0:02:57.9]} 4. Bxd7+ {[%clk 0:02:59]} 4... Qxd7 {[%clk 0:02:58.8]} 5. c4 {[%clk
0:02:59.3]} 5... Nf6 {[%clk 0:02:39.6]} 6. Nc3 {[%clk 0:03:00.2]} 6... g6 {[%clk
0:02:39.7]} 7. d4 {[%clk 0:03:00.4]} 7... cxd4 {[%clk 0:02:40.6]} 8. Nxd4 {[%clk
0:03:00.9]} 8... Bg7 {[%clk 0:02:40.3]} 9. f3 {[%clk 0:02:59]} 9... O-O {[%clk
0:02:40.2]} 10. Be3 {[%clk 0:02:57.8]} 10... Rc8 {[%clk 0:02:39.4]} 11. b3
{[%clk 0:02:57.9]} 11... a6 {[%clk 0:02:18.1]} 12. a4 {[%clk 0:02:57.2]} 12...
Nc6 {[%clk 0:02:14.8]} 13. Qd2 {[%clk 0:02:56.5]} 13... Nxd4 {[%clk 0:02:01.5]}
14. Bxd4 {[%clk 0:02:55.9]} 14... Qc6 {[%clk 0:02:01.8]} 15. Rc1 {[%clk
0:02:45.2]} 15... e6 {[%clk 0:01:55.2]} 16. O-O {[%clk 0:02:39]} 16... Rd8
{[%clk 0:01:55.3]} 17. Rfd1 {[%clk 0:02:38.8]} 17... Rac8 {[%clk 0:01:52.6]} 18.
Qg5 {[%clk 0:02:27.6]} 18... Nd7 {[%clk 0:01:49.6]} 19. Bxg7 {[%clk 0:02:27]}
19... Kxg7 {[%clk 0:01:50.5]} 20. Qd2 {[%clk 0:02:25.5]} 20... Nc5 {[%clk
0:01:47]} 21. Rb1 {[%clk 0:02:22.8]} 21... b6 {[%clk 0:01:45.1]} 22. Ne2 {[%clk
0:02:12.1]} 22... Kg8 {[%clk 0:01:43.8]} 23. Nd4 {[%clk 0:02:11.3]} 23... Qc7
{[%clk 0:01:44.1]} 24. Re1 {[%clk 0:02:00.3]} 24... d5 {[%clk 0:01:41.5]} 25.
cxd5 {[%clk 0:01:59.5]} 25... exd5 {[%clk 0:01:41.8]} 26. e5 {[%clk 0:01:59.9]}
26... Ne6 {[%clk 0:01:39.5]} 27. Rbc1 {[%clk 0:01:50.1]} 27... Qb7 {[%clk
0:01:34.5]} 28. h4 {[%clk 0:01:44.3]} 28... Qe7 {[%clk 0:01:26.8]} 29. g3 {[%clk
0:01:39.7]} 29... Qa3 {[%clk 0:01:23]} 30. Nc6 {[%clk 0:01:26.8]} 30... Rxc6
{[%clk 0:00:53.7]} 31. Rxc6 {[%clk 0:01:25]} 31... Qxb3 {[%clk 0:00:53.9]} 32.
Qe3 {[%clk 0:01:21.1]} 32... Qxa4 {[%clk 0:00:51.5]} 33. Qxb6 {[%clk 0:01:16.9]}
33... Re8 {[%clk 0:00:11.8]} 34. Qxa6 {[%clk 0:01:05.7]} 34... Qb4 {[%clk
0:00:12]} 35. Rd1 {[%clk 0:00:49.9]} 35... d4 {[%clk 0:00:12]} 36. Rc8 {[%clk
0:00:46.5]} 36... Rxc8 {[%clk 0:00:09.1]} 37. Qxc8+ {[%clk 0:00:47.4]} 37... Kg7
{[%clk 0:00:09.7]} 38. Qc2 {[%clk 0:00:46.9]} 38... Qa5 {[%clk 0:00:06.8]} 39.
f4 {[%clk 0:00:44.1]} 39... Qd5 {[%clk 0:00:06.9]} 40. Qg2 {[%clk 0:00:43.1]}
40... Qb5 {[%clk 0:00:05.9]} 41. Qf3 {[%clk 0:00:41.2]} 41... Qc5 {[%clk
0:00:05.8]} 42. Kh2 {[%clk 0:00:36.3]} 42... h5 {[%clk 0:00:06]} 43. Rd2 {[%clk
0:00:31.6]} 43... Qc3 {[%clk 0:00:06]} 44. Qxc3 {[%clk 0:00:30.6]} 44... dxc3
{[%clk 0:00:06.9]} 45. Rc2 {[%clk 0:00:30.9]} 45... Nd4 {[%clk 0:00:03.5]} 46.
Rxc3 {[%clk 0:00:31]} 46... Nf5 {[%clk 0:00:03.6]} 47. Ra3 {[%clk 0:00:30.2]}
47... Kf8 {[%clk 0:00:03.1]} 48. Ra7 {[%clk 0:00:30.2]} 48... Kg7 {[%clk
0:00:03]} 49. Kh3 {[%clk 0:00:29.9]} 49... Kf8 {[%clk 0:00:03]} 50. Kg2 {[%clk
0:00:29.4]} 50... Kg8 {[%clk 0:00:03.2]} 51. Kh2 {[%clk 0:00:29.6]} 51... Kf8
{[%clk 0:00:03.7]} 52. Kh3 {[%clk 0:00:29.4]} 52... Kg8 {[%clk 0:00:04]} 53. g4
{[%clk 0:00:29.7]} 53... hxg4+ {[%clk 0:00:04.6]} 54. Kxg4 {[%clk 0:00:30.1]}
54... Ne3+ {[%clk 0:00:05.2]} 55. Kg5 {[%clk 0:00:29.8]} 55... Nf5 {[%clk
0:00:06.1]} 56. h5 {[%clk 0:00:27]} 56... Nd4 {[%clk 0:00:03.7]} 57. hxg6 {[%clk
0:00:26.5]} 57... Ne6+ {[%clk 0:00:03.9]} 58. Kf6 {[%clk 0:00:26.2]} 58... Nxf4
{[%clk 0:00:01.5]} 59. Ra8# {[%clk 0:00:23.7]} 1-0

[Event "*** SCC Grand Prix: Titled Tuesday Blitz"]
[Site "Chess.com"]
[Date "2020.09.08"]
[Round "2"]
[White "Sanan_Sjugirov"]
[Black "renehp"]
[Result "1-0"]
[WhiteElo "2835"]
[BlackElo "2535"]
[TimeControl "180+1"]
[EndTime "10:18:49 PDT"]
[Termination "Sanan_Sjugirov won on time"]

1. e4 {[%clk 0:03:00.9]} 1... d5 {[%clk 0:02:59.3]} 2. exd5 {[%clk 0:03:00.5]}
2... Nf6 {[%clk 0:02:59.3]} 3. Nf3 {[%clk 0:02:59.2]} 3... Qxd5 {[%clk
0:02:58.5]} 4. Nc3 {[%clk 0:02:57]} 4... Qa5 {[%clk 0:02:56.9]} 5. Bc4 {[%clk
0:02:41]} 5... c6 {[%clk 0:02:54.7]} 6. O-O {[%clk 0:02:33.1]} 6... Bf5 {[%clk
0:02:49.8]} 7. Re1 {[%clk 0:02:16.6]} 7... e6 {[%clk 0:02:47.4]} 8. Nd4 {[%clk
0:01:51.8]} 8... Be7 {[%clk 0:02:42.8]} 9. Nxf5 {[%clk 0:01:41.2]} 9... Qxf5
{[%clk 0:02:43.7]} 10. d4 {[%clk 0:01:39.4]} 10... O-O {[%clk 0:02:41]} 11. Bd3
{[%clk 0:01:38.7]} 11... Qa5 {[%clk 0:02:39.1]} 12. Ne4 {[%clk 0:01:23.7]} 12...
Nbd7 {[%clk 0:02:29.9]} 13. c3 {[%clk 0:01:21.3]} 13... Qc7 {[%clk 0:02:21.1]}
14. Qf3 {[%clk 0:01:19.1]} 14... c5 {[%clk 0:02:05.7]} 15. Bf4 {[%clk 0:01:15]}
15... Qb6 {[%clk 0:01:49.6]} 16. Nxf6+ {[%clk 0:01:08]} 16... Nxf6 {[%clk
0:01:48.7]} 17. Be5 {[%clk 0:01:00.5]} 17... Rad8 {[%clk 0:01:46.2]} 18. dxc5
{[%clk 0:00:45.7]} 18... Qxc5 {[%clk 0:01:24.6]} 19. Rad1 {[%clk 0:00:42.4]}
19... Rd5 {[%clk 0:01:18.8]} 20. Bd4 {[%clk 0:00:39.4]} 20... Qc8 {[%clk
0:01:11.9]} 21. Bxa7 {[%clk 0:00:30.5]} 21... Qa8 {[%clk 0:01:00.7]} 22. Bd4
{[%clk 0:00:30.2]} 22... Qxa2 {[%clk 0:00:56.5]} 23. Qe2 {[%clk 0:00:29.1]}
23... Qa8 {[%clk 0:00:54.4]} 24. Bc4 {[%clk 0:00:22.3]} 24... Rdd8 {[%clk
0:00:43.3]} 25. Bb6 {[%clk 0:00:19.2]} 25... Rxd1 {[%clk 0:00:42.1]} 26. Rxd1
{[%clk 0:00:20.1]} 26... Qc8 {[%clk 0:00:39.4]} 27. Bd4 {[%clk 0:00:07.7]} 27...
Rd8 {[%clk 0:00:37.8]} 28. Bd3 {[%clk 0:00:07.4]} 28... Rd5 {[%clk 0:00:29.8]}
29. h3 {[%clk 0:00:07.2]} 29... Qd7 {[%clk 0:00:27.9]} 30. Bc4 {[%clk
0:00:03.7]} 30... Rd6 {[%clk 0:00:25.5]} 31. Bb5 {[%clk 0:00:04]} 31... Qd8
{[%clk 0:00:24.2]} 32. Ra1 {[%clk 0:00:04.3]} 32... Nd5 {[%clk 0:00:20.4]} 33.
Qe4 {[%clk 0:00:02.9]} 33... Bf6 {[%clk 0:00:18.5]} 34. Bc5 {[%clk 0:00:03.1]}
34... Nxc3 {[%clk 0:00:05.6]} 35. bxc3 {[%clk 0:00:02.9]} 35... Rd1+ {[%clk
0:00:05.6]} 36. Rxd1 {[%clk 0:00:03.1]} 36... Qxd1+ {[%clk 0:00:06.5]} 37. Bf1
{[%clk 0:00:03]} 37... Bxc3 {[%clk 0:00:07.4]} 38. Qxb7 {[%clk 0:00:02.9]} 38...
h6 {[%clk 0:00:05.8]} 39. Qc8+ {[%clk 0:00:03.1]} 39... Kh7 {[%clk 0:00:05.9]}
40. Qc6 {[%clk 0:00:03.3]} 40... Bf6 {[%clk 0:00:03]} 41. Be3 {[%clk 0:00:03.3]}
41... g6 {[%clk 0:00:02.5]} 42. Qf3 {[%clk 0:00:03]} 42... Qd8 {[%clk
0:00:01.4]} 43. g3 {[%clk 0:00:02.8]} 43... Kg7 {[%clk 0:00:01.6]} 44. Kg2
{[%clk 0:00:03.7]} 44... h5 {[%clk 0:00:02]} 45. h4 {[%clk 0:00:04.6]} 45... e5
{[%clk 0:00:02.3]} 46. Be2 {[%clk 0:00:05.1]} 46... Qe7 {[%clk 0:00:02.6]} 47.
Qe4 {[%clk 0:00:05.4]} 47... Qe6 {[%clk 0:00:01.3]} 48. Bf3 {[%clk 0:00:05.6]}
1-0

[Event "*** SCC Grand Prix: Titled Tuesday Blitz"]
[Site "Chess.com"]
[Date "2020.09.08"]
[Round "2"]
[White "ExtremeLearner"]
[Black "ErikRonka"]
[Result "0-1"]
[WhiteElo "2442"]
[BlackElo "2255"]
[TimeControl "180+1"]
[EndTime "10:18:49 PDT"]
[Termination "ErikRonka won by checkmate"]

1. d4 {[%clk 0:03:00.9]} 1... d5 {[%clk 0:02:59.3]} 2. Bf4 {[%clk 0:02:58.1]}
2... c5 {[%clk 0:02:59.3]} 3. e3 {[%clk 0:02:52.1]} 3... cxd4 {[%clk 0:02:59.6]}
4. exd4 {[%clk 0:02:51.5]} 4... Nc6 {[%clk 0:03:00.5]} 5. c3 {[%clk 0:02:49.5]}
5... f6 {[%clk 0:02:59.9]} 6. Nf3 {[%clk 0:02:48.6]} 6... g5 {[%clk 0:02:57.4]}
7. Bg3 {[%clk 0:02:46.9]} 7... h5 {[%clk 0:02:56.9]} 8. h4 {[%clk 0:02:46.1]}
8... g4 {[%clk 0:02:56.8]} 9. Nfd2 {[%clk 0:02:45.5]} 9... Bf5 {[%clk
0:02:54.3]} 10. Nb3 {[%clk 0:02:42.4]} 10... e6 {[%clk 0:02:46.2]} 11. Bd3
{[%clk 0:02:41.4]} 11... Nh6 {[%clk 0:02:45.7]} 12. Nc5 {[%clk 0:02:35]} 12...
Bxc5 {[%clk 0:02:28.4]} 13. dxc5 {[%clk 0:02:32.2]} 13... Ne5 {[%clk 0:02:28.7]}
14. Bb5+ {[%clk 0:02:28.5]} 14... Kf7 {[%clk 0:02:24.8]} 15. O-O {[%clk
0:02:01.6]} 15... Bxb1 {[%clk 0:02:14.6]} 16. Rxb1 {[%clk 0:01:55]} 16... Nf5
{[%clk 0:02:15]} 17. b4 {[%clk 0:01:47.4]} 17... Ng6 {[%clk 0:02:04.4]} 18. Bd3
{[%clk 0:01:39.2]} 18... Ngxh4 {[%clk 0:01:46.9]} 19. Bxh4 {[%clk 0:01:35.1]}
19... Nxh4 {[%clk 0:01:46.6]} 20. Re1 {[%clk 0:01:25.4]} 20... Qd7 {[%clk
0:01:34.4]} 21. a4 {[%clk 0:01:10.6]} 21... Rag8 {[%clk 0:01:30.6]} 22. Qc2
{[%clk 0:00:44.8]} 22... Qc7 {[%clk 0:01:24.9]} 23. g3 {[%clk 0:00:14]} 23...
Nf3+ {[%clk 0:01:24.6]} 24. Kg2 {[%clk 0:00:14.5]} 24... Nxe1+ {[%clk
0:01:14.5]} 25. Rxe1 {[%clk 0:00:15.4]} 25... h4 {[%clk 0:01:14.2]} 26. c4
{[%clk 0:00:13.6]} 26... hxg3 {[%clk 0:01:13.1]} 27. fxg3 {[%clk 0:00:14.5]}
27... Rh3 {[%clk 0:01:11.4]} 28. Qf2 {[%clk 0:00:07.7]} 28... Rgh8 {[%clk
0:01:06.6]} 29. Qe3 {[%clk 0:00:04]} 29... Rh2+ {[%clk 0:01:02.2]} 30. Kf1
{[%clk 0:00:04.6]} 30... Rh1+ {[%clk 0:01:00.1]} 31. Ke2 {[%clk 0:00:05.2]}
31... Rxe1+ {[%clk 0:00:53.8]} 32. Kxe1 {[%clk 0:00:06.1]} 32... Qe5 {[%clk
0:00:50.8]} 33. Qxe5 {[%clk 0:00:06.1]} 33... fxe5 {[%clk 0:00:51.7]} 34. cxd5
{[%clk 0:00:05.8]} 34... exd5 {[%clk 0:00:52.3]} 35. Bf5 {[%clk 0:00:04.4]}
35... Rh2 {[%clk 0:00:37.3]} 36. Bc8 {[%clk 0:00:04.3]} 36... b6 {[%clk
0:00:25.4]} 37. c6 {[%clk 0:00:04.2]} 37... Ke7 {[%clk 0:00:25.2]} 38. Bxg4
{[%clk 0:00:02.8]} 38... Kd6 {[%clk 0:00:24.6]} 39. b5 {[%clk 0:00:02.9]} 39...
Ra2 {[%clk 0:00:21]} 40. Bd1 {[%clk 0:00:03]} 40... e4 {[%clk 0:00:19.3]} 41. g4
{[%clk 0:00:03.1]} 41... d4 {[%clk 0:00:19.3]} 42. g5 {[%clk 0:00:03.4]} 42...
e3 {[%clk 0:00:19.3]} 43. g6 {[%clk 0:00:03.4]} 43... Rg2 {[%clk 0:00:19.1]} 44.
Bf3 {[%clk 0:00:02.4]} 44... Rxg6 {[%clk 0:00:18.5]} 45. Ke2 {[%clk 0:00:03.1]}
45... Rf6 {[%clk 0:00:17.8]} 46. Be4 {[%clk 0:00:03.1]} 46... Rf2+ {[%clk
0:00:16.8]} 47. Kd3 {[%clk 0:00:03.7]} 47... Rd2+ {[%clk 0:00:17.3]} 48. Kc4
{[%clk 0:00:03.5]} 48... e2 {[%clk 0:00:17.5]} 49. a5 {[%clk 0:00:03]} 49...
e1=Q {[%clk 0:00:17.3]} 50. axb6 {[%clk 0:00:03.9]} 50... Qc1+ {[%clk
0:00:17.3]} 51. Bc2 {[%clk 0:00:02]} 51... Rxc2+ {[%clk 0:00:17.2]} 52. Kxd4
{[%clk 0:00:02.4]} 52... Qd2+ {[%clk 0:00:17.3]} 53. Ke4 {[%clk 0:00:03.3]}
53... Rc4+ {[%clk 0:00:17.4]} 54. Kf5 {[%clk 0:00:04.2]} 54... Qf2+ {[%clk
0:00:16.7]} 55. Kg6 {[%clk 0:00:05.1]} 55... Rg4+ {[%clk 0:00:16.6]} 56. Kh5
{[%clk 0:00:06]} 56... Qh4# {[%clk 0:00:16.8]} 0-1